Cogmind - Beta 15 *** ADVENTURER MODE // 2025.05.29 @ 19:47:12 Player: Jack Result: Destroyed by Executioner with Helical Railgun Performance ------------- Evolutions (9) 4500 Regions Visited (24) 4800 Robots Destroyed (80) 400 Value Destroyed (2298) 2298 Prototype IDs (26) 520 Alien Tech Used (0) 0 Bonus (7070) 7070 TOTAL SCORE: 19588 Bonus ------- Follower Combat Kills 1429 Aligned with FarCom 300 Met Warlord at Base 500 MAIN.C Attacked Warlord 500 Built Enhanced Grunts 300 A7 Reached Mainframe 300 Met Warlord at Research 2000 Met Warlord at Command 2000 Friendly Fire -259 Cogmind --------- Core Integrity 0/1600 Matter 143/300 Energy 100/100 System Corruption 5% Temperature Cool (0) Movement Core (50) Location -1/Command Parts ------- > --- POWER (2) -------- (None) > --- PROPULSION (8) --- (None) > --- UTILITY (13) ----- Advanced Signal Interpreter Advanced Signal Interpreter System Shield > --- WEAPON (2) ------- (None) > --- INVENTORY (5) ---- Datajack Datajack Makeshift Axe Peak State ------------ > --- POWER ------------ Neutrino Core Light Quantum Reactor > --- PROPULSION ------- Improved Cesium-ion Thruster Field Propulsion Drive Nuclear Pulse Array Nuclear Pulse Array Impulse Thruster Impulse Thruster > --- UTILITY ---------- Structural Scanner Advanced Sensor Array Advanced Signal Interpreter Advanced Signal Interpreter Hacking Suite Hacking Suite Hacking Suite Hacking Suite Hacking Suite System Shield Improved System Shield Advanced System Shield > --- WEAPON ----------- Ripper Makeshift Axe > --- INVENTORY -------- Micro Antimatter Reactor Rocket Array Datajack Datajack Spear [Rating: 118] Favorites ----------- Power Neutrino Core Engine Light Deuterium Engine Power Core Neutrino Core Reactor Light Quantum Reactor Propulsion Nuclear Pulse Array Leg Carbon-fiber Leg Flight Unit Nuclear Pulse Array Utility Hacking Suite Device Structural Scanner Processor Advanced Signal Interpreter Hackware Hacking Suite Weapon Makeshift Sword Energy Gun EM Pulse Gun Ballistic Gun Light Assault Rifle Launcher Rocket Array Impact Weapon Mace Slashing Weapon Makeshift Sword Piercing Weapon Spear Build | -11 -10 -10 -9 -9 -9 -8 -8 -7 -7 -7 -6 -5 -5 -5 -5 -4 -4 -4 -4 -3 -3 -2 -1 -1 ------- Run | Yrd Mat Min Mat Min Exi Min Mat Fac Was Fac Fac Fac Ext Cet Arc Fac Upp Upp War Pro Res Res Acc Com Slots Evolved 18 | . . . 2 . . . 2 2 . . 2 2 . . . 2 . . . . 2 2 2 . Power 1 | . . . . . . . . . . . . . . . . . . . . . . 1 . . Propulsion 6 | . . . . . . . . . . . 2 2 . . . . . . . . 2 . . . Utility 11 | . . . 2 . . . 2 2 . . . . . . . 2 . . . . . 1 2 . Weapon . | . . . . . . . . . . . . . . . . . . . . . . . . . Parts Attached 77 | . 7 . 8 1 1 . 1 8 . 16 7 3 3 . . 4 3 . . . 1 3 2 9 Power 8 | . . . . . . . . . . 2 1 . 1 . . . . . . . . 1 1 2 Engine 3 | . . . . . . . . . . 2 1 . . . . . . . . . . . . . Core 2 | . . . . . . . . . . . . . 1 . . . . . . . . . . 1 Reactor 3 | . . . . . . . . . . . . . . . . . . . . . . 1 1 1 Propulsion 31 | . 4 . 6 . . . 1 1 . 4 3 1 . . . 2 1 . . . 1 1 1 5 Treads . | . . . . . . . . . . . . . . . . . . . . . . . . . Leg 2 | . . . 2 . . . . . . . . . . . . . . . . . . . . . Wheel . | . . . . . . . . . . . . . . . . . . . . . . . . . Hover . | . . . . . . . . . . . . . . . . . . . . . . . . . Flight 29 | . 4 . 4 . . . 1 1 . 4 3 1 . . . 2 1 . . . 1 1 1 5 Utility 24 | . . . . . 1 . . 4 . 10 2 2 . . . 2 1 . . . . 1 . 1 Device 4 | . . . . . 1 . . 1 . 1 . . . . . 1 . . . . . . . . Storage . | . . . . . . . . . . . . . . . . . . . . . . . . . Processor 3 | . . . . . . . . 1 . . . . . . . . 1 . . . . 1 . . Hackware 17 | . . . . . . . . 2 . 9 2 2 . . . 1 . . . . . . . 1 Protection . | . . . . . . . . . . . . . . . . . . . . . . . . . Artifact . | . . . . . . . . . . . . . . . . . . . . . . . . . Weapon 14 | . 3 . 2 1 . . . 3 . . 1 . 2 . . . 1 . . . . . . 1 Energy Gun 1 | . . . 1 . . . . . . . . . . . . . . . . . . . . . Energy Cannon . | . . . . . . . . . . . . . . . . . . . . . . . . . Ballistic Gun 4 | . 2 . 1 . . . . 1 . . . . . . . . . . . . . . . . Ballistic Cannon . | . . . . . . . . . . . . . . . . . . . . . . . . . Launcher 3 | . . . . 1 . . . . . . 1 . 1 . . . . . . . . . . . Special Weapon . | . . . . . . . . . . . . . . . . . . . . . . . . . Impact Weapon 2 | . 1 . . . . . . 1 . . . . . . . . . . . . . . . . Slashing Weapon 3 | . . . . . . . . 1 . . . . 1 . . . 1 . . . . . . . Piercing Weapon 1 | . . . . . . . . . . . . . . . . . . . . . . . . 1 Special Melee Weapon . | . . . . . . . . . . . . . . . . . . . . . . . . . Unidentified Prototypes 2 | . . . . . . . . 1 . . 1 . . . . . . . . . . . . . Parts Lost 43 | . 2 . 5 . . . 2 2 . 4 1 2 1 . . 1 . . . . . . 1 22 Power 3 | . . . . . . . . . . 1 . . 1 . . . . . . . . . . 1 Propulsion 23 | . 2 . 3 . . . 1 2 . 2 . 1 . . . . . . . . . . 1 11 Utility 12 | . . . . . . . . . . 1 1 1 . . . 1 . . . . . . . 8 Weapon 5 | . . . 2 . . . 1 . . . . . . . . . . . . . . . . 2 Highest Loss Streak 9 | . 1 . 2 . . . 2 1 . 3 1 2 1 . . 1 . . . . . . 1 9 To Critical Strikes . | . . . . . . . . . . . . . . . . . . . . . . . . . Average Backups 4 | 1 4 4 4 4 5 5 5 4 5 4 3 4 4 5 5 5 4 5 5 5 5 5 5 4 Power . | . . . . . . . . . . . . . . . . . . . . . . 1 1 . Propulsion . | . 2 2 2 2 2 2 2 . . 1 . . . . . . . 1 1 1 . . . . Utility . | . . . . . . . . . . . . 1 2 2 2 2 1 1 1 1 . . . . Weapon 2 | 1 1 2 1 2 3 3 3 3 5 3 2 2 2 3 3 3 3 3 3 3 2 2 2 1 Tool/Special . | . . . . . . . . . . . . . . . . . . . . . . . . . Unused Backups 5 | . . . . . . . . . . 1 . 1 . . . . . . . . 1 . . 2 Power . | . . . . . . . . . . . . . . . . . . . . . . . . . Propulsion . | . . . . . . . . . . . . . . . . . . . . . . . . . Utility 1 | . . . . . . . . . . . . . . . . . . . . . 1 . . . Weapon 2 | . . . . . . . . . . 1 . 1 . . . . . . . . . . . . Tool/Special 2 | . . . . . . . . . . . . . . . . . . . . . . . . 2 Average Slot Usage (%) 70 | . 50 57 39 44 44 44 31 22 46 83 83 82 83 88 88 80 88 89 89 89 86 87 82 58 Engine 1 | . . . . . . . . . . 5 6 5 2 . . . . . . . . . . . Core 1 | . . . . . . . . . . . . . 2 5 5 5 5 5 5 5 4 4 4 1 Flight 18 | . 24 28 10 22 22 22 16 7 7 14 18 23 23 23 23 21 21 21 21 21 25 26 22 14 Device 4 | . . . . . . . . . 7 7 6 5 5 5 5 6 10 10 10 10 9 8 8 3 Processor 1 | . . . . . . . . . 7 1 . . . . . . 5 5 5 5 4 6 8 8 Hackware 28 | . . . . . . . . 5 15 44 45 41 41 41 41 35 36 36 36 36 33 30 28 23 Ballistic Gun 2 | . 22 14 10 10 11 11 6 . . . . . . . . . . . . . . . . . Impact Weapon 1 | . 2 14 9 11 11 11 9 6 . . . . . . . . . . . . . . . . Slashing Weapon 5 | . . . . . . . . . 7 6 5 5 7 11 11 10 9 10 10 10 9 8 7 5 Peak Build Rating 118 | . 5 5 9 6 13 6 6 17 17 39 55 66 68 68 68 79 86 86 86 86 94 112 116 118 Average Rating 49 | . 3 5 6 5 5 5 5 8 17 32 44 61 64 68 68 73 85 86 86 86 91 106 111 75 On Entrance 46 | . . 5 5 5 5 5 6 5 17 17 38 55 63 68 68 68 79 86 86 86 86 93 112 115 Naked Turns 33 | . 33 . . . . . . . . . . . . . . . . . . . . . . . Heaviest Build 41 | . 4 4 4 6 3 3 3 4 3 10 15 12 20 20 20 21 22 22 22 22 22 37 41 41 Greatest Support 54 | 3 8 8 30 8 8 8 8 8 3 11 25 36 30 30 30 36 40 40 40 40 51 54 54 53 Greatest Overweight (x) 1 | . . . 1 . . . . 1 . . . . 1 . . . . . . . . . . 1 Average Overweight (x) . | . . . . . . . . . . . . . . . . . . . . . . . . . Largest Inventory Capacity 5 | 5 5 5 5 5 5 5 5 5 5 5 5 5 5 5 5 5 5 5 5 5 5 5 5 5 Average Capacity 5 | 5 5 5 5 5 5 5 5 5 5 5 5 5 5 5 5 5 5 5 5 5 5 5 5 5 Most Carried 5 | 3 5 4 5 5 5 5 5 5 5 5 5 5 5 5 5 5 5 5 5 5 5 5 5 5 Average Carried 4 | 2 4 4 4 4 5 5 4 4 5 4 4 4 4 5 5 5 4 5 5 5 4 5 5 4 Final Capacity 5 | 5 5 5 5 5 5 5 5 5 5 5 5 5 5 5 5 5 5 5 5 5 5 5 5 5 Final Carried 5 | 3 4 4 4 5 5 5 4 5 5 5 5 5 5 5 5 5 5 5 5 5 5 5 5 3 Class Distribution -------------------- 35% | Wizard-Sprinter 21% | Wizard-Scout 21% | Mutant 6% | Wizard-Mutant 5% | Hacker-Mutant 4% | Hacker-Sprinter 4% | Hacker-Scout Dominant Class ---------------- Mutant | -10/Materials Mutant | -10/Mines Mutant | -9/Materials Mutant | -9/Mines Mutant | -9/Exiles Mutant | -8/Mines Mutant | -8/Materials Hacker-Mutant | -7/Factory Hacker-Scout | -7/Waste Hacker-Sprinter | -7/Factory Wizard-Sprinter | -6/Factory Wizard-Sprinter | -5/Factory Wizard-Sprinter | -5/Extension Wizard-Sprinter | -5/Cetus Wizard-Sprinter | -5/Archives Wizard-Sprinter | -4/Factory Wizard-Scout | -4/Upper Caves Wizard-Scout | -4/Upper Caves Wizard-Scout | -4/Warlord Wizard-Scout | -3/Proximity Caves Wizard-Scout | -3/Research Wizard-Scout | -2/Research Wizard-Scout | -1/Access Wizard-Scout | -1/Command Resources | -11 -10 -10 -9 -9 -9 -8 -8 -7 -7 -7 -6 -5 -5 -5 -5 -4 -4 -4 -4 -3 -3 -2 -1 -1 ----------- Run | Yrd Mat Min Mat Min Exi Min Mat Fac Was Fac Fac Fac Ext Cet Arc Fac Upp Upp War Pro Res Res Acc Com Matter Collected 1639 | . 79 . 85 156 . 63 . 12 . 88 440 30 246 8 10 20 50 . . . 20 . 144 188 Remotely . | . . . . . . . . . . . . . . . . . . . . . . . . . Salvage Created 2062 | . 128 . 139 50 . 45 . 245 . 158 440 85 237 . . . . . . . 130 . 237 168 Parts 129 | . 8 . 8 6 . 1 . 16 . 15 25 8 9 . . . . . . . 9 . 13 11 Haulers Intercepted . | . . . . . . . . . . . . . . . . . . . . . . . . . Recyclers Shooed 2 | . . . . . . . . . . . 2 . . . . . . . . . . . . . Parts Field Recycled . | . . . . . . . . . . . . . . . . . . . . . . . . . Retrieved Matter . | . . . . . . . . . . . . . . . . . . . . . . . . . Parts Self-Destructed 16 | . . . . . . . . . . . . . . . . . 8 8 . . . . . . Prevented . | . . . . . . . . . . . . . . . . . . . . . . . . . Kills | -11 -10 -10 -9 -9 -9 -8 -8 -7 -7 -7 -6 -5 -5 -5 -5 -4 -4 -4 -4 -3 -3 -2 -1 -1 ------- Run | Yrd Mat Min Mat Min Exi Min Mat Fac Was Fac Fac Fac Ext Cet Arc Fac Upp Upp War Pro Res Res Acc Com Combat Hostiles Destroyed 44 | . 5 . 6 4 . 3 . 8 . 4 3 . 2 . . . . . . . . . 6 3 Melee 5 | . . . . . . 3 . . . . . . . . . . . . . . . . 1 1 Guns 9 | . 5 . 4 . . . . . . . . . . . . . . . . . . . . . AOE 28 | . . . . 4 . . . 8 . 4 3 . 2 . . . . . . . . . 5 2 Classes Destroyed 12 | . 2 . 1 2 . . . 4 . 2 1 . . . . . . . . . . . . . Worker 9 | . . . . 2 . . . 1 . . 1 . . . . . . . . . 3 . 1 1 Builder 9 | . . . . . . . . 1 . 2 4 1 1 . . . . . . . . . . . Tunneler 2 | . . . . 1 . . . . . . . . . . . . . . . . 1 . . . Recycler 3 | . . . . . . . . . . . 2 . 1 . . . . . . . . . . . Operator 5 | . . . . . . . . . . 2 1 . 1 . . . . . . . . . . 1 Watcher 7 | . . . . . . . . . . 2 . 2 . . . . . . . . 1 . 1 1 Swarmer 25 | . 3 . 4 4 . 3 . . . 4 3 . . . . . . . . . . . 4 . Grunt 10 | . 2 . 1 . . . . 5 . . . . 1 . . . . . . . . . 1 . Duelist 1 | . . . . . . . . 1 . . . . . . . . . . . . . . . . Sentry 1 | . . . 1 . . . . . . . . . . . . . . . . . . . . . Hunter 4 | . . . . . . . . 1 . . . . 1 . . . . . . . . . 1 1 Programmer 3 | . . . . . . . . 1 . . . . . . . . . . . . . . . 2 Wizard 1 | . . . . . . . . . . . . . . . . . . . . . . . . 1 Best Kill Streak 9 | . 3 . 4 4 . 3 . 9 . 4 5 1 3 . . . . . . . 2 . 4 4 Combat Bots Only 8 | . 3 . 4 4 . 3 . 8 . 4 3 . 2 . . . . . . . . . 4 2 Max Kills in Single Turn 5 | . 1 . 1 2 . 1 . 5 . 3 3 1 1 . . . . . . . 1 . 4 2 Gunslinging . | . . . . . . . . . . . . . . . . . . . . . . . . . Exploded 4 | . . . . 2 . . . 4 . 3 2 . 1 . . . . . . . . . 4 1 Melee 1 | . . . . . . 1 . . . . . . . . . . . . . . . . 1 1 Uniques/NPCs Destroyed . | . . . . . . . . . . . . . . . . . . . . . . . . . Combat | -11 -10 -10 -9 -9 -9 -8 -8 -7 -7 -7 -6 -5 -5 -5 -5 -4 -4 -4 -4 -3 -3 -2 -1 -1 -------- Run | Yrd Mat Min Mat Min Exi Min Mat Fac Was Fac Fac Fac Ext Cet Arc Fac Upp Upp War Pro Res Res Acc Com Hostile Shots Fired 405 | . 40 . 72 7 . 16 12 20 . 55 12 . 12 . . 9 2 . . . 2 3 35 108 Missed 204 | . 17 . 36 2 . 8 6 10 . 38 9 . 5 . . 4 2 . . . 2 3 17 45 Hits 201 | . 23 . 36 5 . 8 6 10 . 17 3 . 7 . . 5 . . . . . . 18 63 Projectile 201 | . 23 . 36 5 . 8 6 10 . 17 3 . 7 . . 5 . . . . . . 18 63 AOE 15 | . . . . . . . . . . . . . . . . . . . . . . . . 15 Critical Strikes 10 | . . . 1 . . 1 . 1 . . . . 1 . . . . . . . . . . 6 Part Disruptions 1 | . . . . . . . . . . . . . . . . . . . . . . . . 1 Damage Taken 4470 | . 261 . 328 31 . 55 66 285 . 363 35 62 193 . . 94 . . . . . . 350 2347 Core 2265 | . 105 . 92 8 . 27 45 163 . 148 . . 18 . . 57 . . . . . . 34 1568 Absorbed by Shields . | . . . . . . . . . . . . . . . . . . . . . . . . . Ignored by Resistances 1192 | . 61 . 102 10 . 16 19 78 . 102 9 . 53 . . 27 . . . . . . 95 620 Regen/Repaired (Parts) 78 | . . . . . . . . . . . 25 . . . . . . . 8 . . . 45 . Core Remaining (%) 86 | 100 . 58 . . . 68 91 . . 55 100 . . . 98 . . . . 95 100 100 . . Volleys Fired 51 | . 14 . 9 3 . . . . . 3 3 . 8 . . . . . . . . . 5 6 Largest 2 | . 2 . 2 1 . . . . . 1 1 . 1 . . . . . . . . . 1 1 Hottest 60 | . 40 . 60 33 . . . . . 33 39 . 45 . . . . . . . . . 45 45 Shots Fired 69 | . 28 . 13 3 . . . . . 3 3 . 8 . . . . . . . . . 5 6 Gun 41 | . 28 . 13 . . . . . . . . . . . . . . . . . . . . . Cannon . | . . . . . . . . . . . . . . . . . . . . . . . . . Launcher 28 | . . . . 3 . . . . . 3 3 . 8 . . . . . . . . . 5 6 Special . | . . . . . . . . . . . . . . . . . . . . . . . . . Kinetic 34 | . 28 . 6 . . . . . . . . . . . . . . . . . . . . . Thermal . | . . . . . . . . . . . . . . . . . . . . . . . . . Explosive 28 | . . . . 3 . . . . . 3 3 . 8 . . . . . . . . . 5 6 Electromagnetic 7 | . . . 7 . . . . . . . . . . . . . . . . . . . . . Robot Hit Streak 17 | . 17 . 7 5 . . . . . 1 . . 5 . . . . . . . . . 6 6 Robot Miss Streak 4 | . 1 . 1 1 . . . . . 1 2 . 3 . . . . . . . . . 3 4 Penetration Max . | . . . . . . . . . . . . . . . . . . . . . . . . . Secondary Targets . | . . . . . . . . . . . . . . . . . . . . . . . . . Shots Hit Robots 124 | . 24 . 23 5 . 6 . 6 . 11 10 3 5 . . . . . . . 8 . 9 14 Core Hits 136 | . 8 . 5 4 . 2 . 12 . 9 11 2 9 . . . . . . . 3 . 21 50 Critical Kills . | . . . . . . . . . . . . . . . . . . . . . . . . . Critical Parts Destroyed 5 | . . . 1 1 . 2 . 1 . . . . . . . . . . . . . . . . Critical Strikes 8 | . . . 1 1 . 2 . 1 . . 1 . . . . . . . . . . . 1 1 Smash 5 | . . . 1 1 . 2 . 1 . . . . . . . . . . . . . . . . Sever 3 | . . . . . . . . . . . 1 . . . . . . . . . . . 1 1 Melee Attacks 319 | . 19 . 19 5 1 11 . 37 . 67 41 27 7 . . 7 2 1 . 1 28 11 15 20 Impact 90 | . 19 . 19 5 1 11 . 35 . . . . . . . . . . . . . . . . Slashing 227 | . . . . . . . . 2 . 67 41 27 7 . . 7 2 1 . 1 28 11 15 18 Piercing 2 | . . . . . . . . . . . . . . . . . . . . . . . . 2 Sneak Attacks 22 | . . . . 3 . . . 1 . 2 5 2 3 . . . . . . . 4 . 1 1 Combat Hostiles . | . . . . . . . . . . . . . . . . . . . . . . . . . Follow-up Attacks 1 | . . . . . . . . . . . . . . . . . . . . . . . . 1 Damage Inflicted 8727 | . 255 . 428 573 . 189 . 1248 . 838 917 195 535 . . . . . . . 530 . 1067 1952 Guns 361 | . 255 . 106 . . . . . . . . . . . . . . . . . . . . . Cannons . | . . . . . . . . . . . . . . . . . . . . . . . . . Explosions 4385 | . . . . 313 . . . 969 . 320 312 . 260 . . . . . . . . . 671 1540 Melee 3978 | . . . 322 260 . 189 . 279 . 518 602 195 275 . . . . . . . 530 . 396 412 Ramming 3 | . . . . . . . . . . . 3 . . . . . . . . . . . . . Kinetic 296 | . 255 . 41 . . . . . . . . . . . . . . . . . . . . . Thermal . | . . . . . . . . . . . . . . . . . . . . . . . . . Explosive 4385 | . . . . 313 . . . 969 . 320 312 . 260 . . . . . . . . . 671 1540 Electromagnetic 65 | . . . 65 . . . . . . . . . . . . . . . . . . . . . Impact 932 | . . . 322 260 . 189 . 161 . . . . . . . . . . . . . . . . Slashing 2981 | . . . . . . . . 118 . 518 602 195 275 . . . . . . . 530 . 396 347 Piercing 65 | . . . . . . . . . . . . . . . . . . . . . . . . 65 Highest Corruption 5 | . 2 2 1 1 1 1 . 2 2 2 . 4 4 4 4 . . . . . . . 1 5 Average Corruption 2 | . 2 2 1 1 1 1 . 1 2 2 . 4 4 4 4 . . . . . . . 1 3 Corruption Purged . | . . . . . . . . . . . . . . . . . . . . . . . . . Corruption Blocked . | . . . . . . . . . . . . . . . . . . . . . . . . . Effects 70 | . . . . 1 2 1 . 9 . 7 . 8 20 8 4 . . . . . . . . 10 Message Errors 15 | . . . . . 2 . . 1 . 1 . 1 3 3 2 . . . . . . . . 2 Matter Fused 11 | . . . . . . . . 2 . 1 . 4 2 . . . . . . . . . . 2 Heat Flow Errors 16 | . . . . 1 . 1 . 2 . 4 . 1 3 1 . . . . . . . . . 3 Energy Discharges 8 | . . . . . . . . 2 . . . 2 1 2 . . . . . . . . . 1 Parts Rejected 2 | . . . . . . . . . . . . . 1 . 1 . . . . . . . . . Parts Fused 1 | . . . . . . . . . . . . . 1 . . . . . . . . . . . Data Loss (minor) 11 | . . . . . . . . . . . . . 8 2 1 . . . . . . . . . Data Loss (major) 2 | . . . . . . . . . . . . . 1 . . . . . . . . . . 1 Alerts 4 | . . . . . . . . 2 . 1 . . . . . . . . . . . . . 1 Overload Shots . | . . . . . . . . . . . . . . . . . . . . . . . . . Overflow Damage 1106 | . . . 49 163 . 58 . 109 . 124 202 53 96 . . . . . . . 166 . 55 31 Projectiles . | . . . . . . . . . . . . . . . . . . . . . . . . . Explosions 92 | . . . . 22 . . . 24 . . 30 . . . . . . . . . . . . 16 Melee 1014 | . . . 49 141 . 58 . 85 . 124 172 53 96 . . . . . . . 166 . 55 15 Knockbacks 1 | . . . . . . . . 1 . . . . . . . . . . . . . . . . Impact 1 | . . . . . . . . 1 . . . . . . . . . . . . . . . . Kinetic . | . . . . . . . . . . . . . . . . . . . . . . . . . Secondary . | . . . . . . . . . . . . . . . . . . . . . . . . . Self-Inflicted Damage 201 | . . . . . . . . 159 . . 1 . . . . . . . . . . . 26 15 Shots 5 | . . . . . . . . 2 . . . . . . . . . . . . . . 2 1 Rammed 1 | . . . . . . . . . . . 1 . . . . . . . . . . . . . Targets Rammed 1 | . . . . . . . . . . . 1 . . . . . . . . . . . . . Kicked . | . . . . . . . . . . . . . . . . . . . . . . . . . Crushed . | . . . . . . . . . . . . . . . . . . . . . . . . . Highest Temperature 221 | . 6 . 16 . . 175 . 209 . 151 . 202 221 118 . . . . . . . . . 202 Average Temperature 81 | . 3 . 7 . . 93 . 106 . 72 . 111 108 68 . . . . . . . . . 97 Received Heat Transfer 426 | . 102 . 153 . . . 18 9 . 39 6 . 27 . . . . . . . . . 27 45 Siege Activations . | . . . . . . . . . . . . . . . . . . . . . . . . . Martial Activations . | . . . . . . . . . . . . . . . . . . . . . . . . . Shielding Activations . | . . . . . . . . . . . . . . . . . . . . . . . . . Robots Disrupted . | . . . . . . . . . . . . . . . . . . . . . . . . . Combat Hostiles . | . . . . . . . . . . . . . . . . . . . . . . . . . Robots Corrupted 2 | . . . 2 . . . . . . . . . . . . . . . . . . . . . Combat Hostiles 2 | . . . 2 . . . . . . . . . . . . . . . . . . . . . Parts Fried 8 | . . . 2 4 . 2 . . . . . . . . . . . . . . . . . . Impact Corruptions 10 | . . . 3 2 . 4 . 1 . . . . . . . . . . . . . . . . Robots Melted . | . . . . . . . . . . . . . . . . . . . . . . . . . Combat Hostiles . | . . . . . . . . . . . . . . . . . . . . . . . . . Parts Melted . | . . . . . . . . . . . . . . . . . . . . . . . . . Heat Transferred . | . . . . . . . . . . . . . . . . . . . . . . . . . Parts Sabotaged . | . . . . . . . . . . . . . . . . . . . . . . . . . Parts Stolen . | . . . . . . . . . . . . . . . . . . . . . . . . . Parts Stripped . | . . . . . . . . . . . . . . . . . . . . . . . . . Power Chain Reactions . | . . . . . . . . . . . . . . . . . . . . . . . . . Alert | -11 -10 -10 -9 -9 -9 -8 -8 -7 -7 -7 -6 -5 -5 -5 -5 -4 -4 -4 -4 -3 -3 -2 -1 -1 ------- Run | Yrd Mat Min Mat Min Exi Min Mat Fac Was Fac Fac Fac Ext Cet Arc Fac Upp Upp War Pro Res Res Acc Com Maximum Alert Level 1 | . . . 1 . . . . 1 . 1 . . 1 . . 1 . . . . 1 1 1 1 Low Security (%) 73 | 100 100 100 52 100 . 100 100 25 100 68 100 100 85 100 100 48 . . . . . 65 86 34 Level 1 26 | . . . 47 . . . . 74 . 31 . . 14 . . 51 . . . . 100 34 13 65 Level 2 . | . . . . . . . . . . . . . . . . . . . . . . . . . Level 3 . | . . . . . . . . . . . . . . . . . . . . . . . . . Level 4 . | . . . . . . . . . . . . . . . . . . . . . . . . . Level 5 . | . . . . . . . . . . . . . . . . . . . . . . . . . High Security . | . . . . . . . . . . . . . . . . . . . . . . . . . Max Security . | . . . . . . . . . . . . . . . . . . . . . . . . . Peak Influence 363 | . 74 . 298 177 . 100 56 363 64 312 128 60 236 69 115 267 . . . . 312 231 276 331 Initial 300 | . . . . 97 . . 19 5 64 33 55 . . 59 . 18 . . . . 300 142 113 149 Average 115 | . 26 . 168 121 . 48 34 226 59 118 59 8 109 18 68 158 . . . . 299 183 145 224 Influence Increases 5145 | . 172 . 575 127 . 105 37 456 . 553 230 140 654 139 167 308 229 25 22 . 421 135 283 367 Destroy 0b10 Robot/C 1560 | . 100 . 120 80 . 60 . 160 . 80 60 . 280 80 80 100 140 20 20 . . . 120 60 Destroy 0b10 Robot/NC 185 | . . . . 15 . . . 10 . 30 40 15 20 5 . 5 . . . . 25 . 10 10 Destroy Leader 208 | . 20 . 20 10 . 10 . 30 . 14 10 4 32 . . 12 10 . . . 2 . 12 22 Allied During Kill 244 | . . . . . . . . . . . . . 40 35 40 58 64 5 2 . . . . . Successful Hack 129 | . 9 . 8 . . . 7 . . . 12 . . . . 21 . . . . 30 . 21 21 Select Force Hacks 50 | . . . . . . . . . . . . . . . . . . . . . . . . 50 Disable Machine 225 | . . . . . . . . 117 . . 27 . 9 . 27 36 . . . . . 9 . . Destroy Structure 714 | . 13 . 7 22 . 5 . 34 . 69 36 46 168 4 20 76 . . . . 34 21 75 84 Advance Influence 300 | . . . . . . . . . . . . . . . . . . . . . 300 . . . Partial Spotted 285 | . . . 15 . . . 30 30 . 75 15 15 30 . . . . . . . . 15 15 45 Lose Combat Pursuer 1245 | . 30 . 405 . . 30 . 75 . 285 30 60 75 15 . . 15 . . . 30 90 30 75 Influence Decreases 5069 | . 171 1 277 291 134 45 81 251 167 475 359 143 532 261 102 194 261 172 22 . 130 209 234 557 Entered New Map 1249 | . . 1 . 201 134 . 41 11 157 21 77 3 . 63 . 47 81 42 . . . 149 104 117 Time Decay 3004 | . 159 . 250 90 . 45 20 220 10 454 272 128 335 89 62 140 120 70 10 . 130 60 120 220 Lost Part 348 | . 12 . 27 . . . 20 20 . . 10 12 10 . . 7 . . . . . . 10 220 Lost Ally 468 | . . . . . . . . . . . . . 187 109 40 . 60 60 12 . . . . . Squads Dispatched 38 | . 1 . 2 . . . 2 3 . 7 3 4 1 . . . . . . . 3 1 2 9 Investigation 16 | . 1 . 1 . . . . 1 . 4 1 3 . . . . . . . . 1 1 . 3 Extermination 11 | . . . . . . . . 1 . 3 1 1 . . . . . . . . 2 . 1 2 Reinforcement 11 | . . . 1 . . . 2 1 . . 1 . 1 . . . . . . . . . 1 4 Assault . | . . . . . . . . . . . . . . . . . . . . . . . . . Garrison . | . . . . . . . . . . . . . . . . . . . . . . . . . Intercept . | . . . . . . . . . . . . . . . . . . . . . . . . . Searches Triggered . | . . . . . . . . . . . . . . . . . . . . . . . . . Construction Impeded 2 | . . . . . . . . 1 . . . . 1 . . . . . . . . . . . Haulers Reinforced . | . . . . . . . . . . . . . . . . . . . . . . . . . Active Scanning Responses . | . . . . . . . . . . . . . . . . . . . . . . . . . Cargo Convoy Interrupts . | . . . . . . . . . . . . . . . . . . . . . . . . . Stealth | -11 -10 -10 -9 -9 -9 -8 -8 -7 -7 -7 -6 -5 -5 -5 -5 -4 -4 -4 -4 -3 -3 -2 -1 -1 --------- Run | Yrd Mat Min Mat Min Exi Min Mat Fac Was Fac Fac Fac Ext Cet Arc Fac Upp Upp War Pro Res Res Acc Com Distress Signals 17 | . 1 . 3 . . . 2 1 . 2 . . 2 1 . . . . . . 1 . 2 2 Communications Jammed . | . . . . . . . . . . . . . . . . . . . . . . . . . Distress Signals . | . . . . . . . . . . . . . . . . . . . . . . . . . Times Spotted 252 | . 16 . 44 4 . 4 12 13 6 33 5 7 22 5 1 6 1 . 4 2 6 5 14 42 Peak Tracking Total 18 | . 6 . 18 4 . 4 12 8 6 9 3 5 6 5 1 5 3 . 4 2 3 6 9 14 Tactical Retreats 34 | . 1 . 7 . . 1 . 2 . 8 2 1 3 1 . . 1 . . . 2 2 1 2 Traps | -11 -10 -10 -9 -9 -9 -8 -8 -7 -7 -7 -6 -5 -5 -5 -5 -4 -4 -4 -4 -3 -3 -2 -1 -1 ------- Run | Yrd Mat Min Mat Min Exi Min Mat Fac Was Fac Fac Fac Ext Cet Arc Fac Upp Upp War Pro Res Res Acc Com Traps Triggered 14 | . 1 . 1 . . . . 1 . 5 1 . 3 . . . . . . . 2 . . . Indirectly . | . . . . . . . . . . . . . . . . . . . . . . . . . Trap Hack Attempts . | . . . . . . . . . . . . . . . . . . . . . . . . . Triggered . | . . . . . . . . . . . . . . . . . . . . . . . . . Disarmed 2 | . . . . . . . . . . . . . 2 . . . . . . . . . . . Reprogrammed . | . . . . . . . . . . . . . . . . . . . . . . . . . Reused . | . . . . . . . . . . . . . . . . . . . . . . . . . Traps Extracted . | . . . . . . . . . . . . . . . . . . . . . . . . . Installed . | . . . . . . . . . . . . . . . . . . . . . . . . . Triggered . | . . . . . . . . . . . . . . . . . . . . . . . . . Machines | -11 -10 -10 -9 -9 -9 -8 -8 -7 -7 -7 -6 -5 -5 -5 -5 -4 -4 -4 -4 -3 -3 -2 -1 -1 ---------- Run | Yrd Mat Min Mat Min Exi Min Mat Fac Was Fac Fac Fac Ext Cet Arc Fac Upp Upp War Pro Res Res Acc Com Machines Disabled 25 | . . . . . . . . 13 . . 3 . 1 . 3 4 . . . . . 1 . . Max in Single Turn 3 | . . . . . . . . 3 . . 1 . 1 . . . . . . . . 1 . . Garrison Access 3 | . . . . . . . . . . . 2 1 . . . . . . . . . . . . Phase Generator 1 | . . . . . . . . . . . . . . . . . . . . . . . . 1 Machines Repaired . | . . . . . . . . . . . . . . . . . . . . . . . . . Machines Dismantled . | . . . . . . . . . . . . . . . . . . . . . . . . . Machines Sabotaged 1 | . . . . . . . . . . . . . . . . . . . . . . . . 1 Overloaded Fab Kills . | . . . . . . . . . . . . . . . . . . . . . . . . . Hacking | -11 -10 -10 -9 -9 -9 -8 -8 -7 -7 -7 -6 -5 -5 -5 -5 -4 -4 -4 -4 -3 -3 -2 -1 -1 --------- Run | Yrd Mat Min Mat Min Exi Min Mat Fac Was Fac Fac Fac Ext Cet Arc Fac Upp Upp War Pro Res Res Acc Com Machines Accessed 77 | . 8 . 7 . 1 . 1 1 . 9 8 9 15 1 . 1 . . 1 . 3 2 5 5 Terminals 59 | . 8 . 7 . . . 1 . . 5 4 5 15 1 . 1 . . . . 2 1 4 5 Fabricators 11 | . . . . . . . . 1 . 4 1 3 . . . . . . . . 1 1 . . Repair Stations 2 | . . . . . . . . . . . 1 . . . . . . . . . . . 1 . Recycling Units . | . . . . . . . . . . . . . . . . . . . . . . . . . Scanalyzers . | . . . . . . . . . . . . . . . . . . . . . . . . . Garrison Access 3 | . . . . . . . . . . . 2 1 . . . . . . . . . . . . Total Hacks 163 | . 14 . 11 . 1 . 2 4 . 26 25 21 20 1 . 1 . . 1 . 8 5 10 13 Successful 115 | . 9 . 7 . 1 . 1 3 . 18 17 17 15 1 . 1 . . 1 . 7 4 7 6 Failed 48 | . 5 . 4 . . . 1 1 . 8 8 4 5 . . . . . . . 1 1 3 7 Catastrophic 3 | . . . . . . . . . . 1 . . 1 . . . . . . . . . . 1 Database Lockouts . | . . . . . . . . . . . . . . . . . . . . . . . . . Manual 100 | . 12 . 11 . 1 . 2 . . 14 19 13 6 1 . 1 . . . . 5 3 1 11 Terminals 116 | . 14 . 11 . . . 2 . . 11 18 11 20 1 . 1 . . . . 5 2 7 13 Fabricators 37 | . . . . . . . . 4 . 15 3 9 . . . . . . . . 3 3 . . Repair Stations 5 | . . . . . . . . . . . 2 . . . . . . . . . . . 3 . Recycling Units . | . . . . . . . . . . . . . . . . . . . . . . . . . Scanalyzers . | . . . . . . . . . . . . . . . . . . . . . . . . . Garrison Access 3 | . . . . . . . . . . . 2 1 . . . . . . . . . . . . Terminal Hacks 58 | . 2 . 1 . 1 . 1 . . 5 10 7 15 1 . 1 . . 1 . 3 1 5 4 Part Schematic 7 | . . . . . . . 1 . . . 2 3 . . . . . . . . 1 . . . Robot Analysis 1 | . 1 . . . . . . . . . . . . . . . . . . . . . . . Open Door 18 | . . . . . . . . . . . . 1 12 1 . . . . 1 . . . 3 . Level Access Points 4 | . . . . . . . . . . 2 1 . . . . . . . . . . 1 . . Branch Access Points 5 | . . . . . . . . . . 1 1 1 . . . 1 . . . . . . 1 . Machine Index 3 | . . . . . . . . . . . 1 1 . . . . . . . . . . . 1 Terminal Index 7 | . 1 . 1 . . . . . . 1 1 . . . . . . . . . 1 . 1 1 Fabricator Index 2 | . . . . . . . . . . . 1 . . . . . . . . . 1 . . . Disarm Traps 2 | . . . . . . . . . . . . . 2 . . . . . . . . . . . Recall Investigation 1 | . . . . . . . . . . . 1 . . . . . . . . . . . . . Recall Extermination 3 | . . . . . . . . . . 1 1 1 . . . . . . . . . . . . Recall Reinforcements 2 | . . . . . . . . . . . 1 . 1 . . . . . . . . . . . Zone Layout 1 | . . . . . . . . . . . . . . . . . . . . . . . . 1 Proto ID Catalog 1 | . . . . . 1 . . . . . . . . . . . . . . . . . . . Disengage Seal 1 | . . . . . . . . . . . . . . . . . . . . . . . . 1 Fabricator Hacks 25 | . . . . . . . . 3 . 10 2 6 . . . . . . . . 2 2 . . Network Status 2 | . . . . . . . . 1 . 1 . . . . . . . . . . . . . . Load Schematic 13 | . . . . . . . . 1 . 6 1 3 . . . . . . . . 1 1 . . Build 10 | . . . . . . . . 1 . 3 1 3 . . . . . . . . 1 1 . . Repair Station Hacks 4 | . . . . . . . . . . . 2 . . . . . . . . . . . 2 . Scan Component 2 | . . . . . . . . . . . 1 . . . . . . . . . . . 1 . Repair 2 | . . . . . . . . . . . 1 . . . . . . . . . . . 1 . Recycling Unit Hacks . | . . . . . . . . . . . . . . . . . . . . . . . . . Scanalyzer . | . . . . . . . . . . . . . . . . . . . . . . . . . Garrison Access Hacks 3 | . . . . . . . . . . . 2 1 . . . . . . . . . . . . Seal Access 3 | . . . . . . . . . . . 2 1 . . . . . . . . . . . . Unauthorized Hacks 25 | . 7 . 6 . . . . . . 3 1 3 . . . . . . . . 2 1 . 2 Terminals 16 | . 7 . 6 . . . . . . . . . . . . . . . . . 1 . . 2 Assimilate 1 | . . . . . . . . . . . . . . . . . . . . . . . . 1 Botnet 1 | . . . . . . . . . . . . . . . . . . . . . 1 . . . Disrupt 1 | . . . 1 . . . . . . . . . . . . . . . . . . . . . Skim 12 | . 7 . 5 . . . . . . . . . . . . . . . . . . . . . Sabotage 1 | . . . . . . . . . . . . . . . . . . . . . . . . 1 Fabricators 9 | . . . . . . . . . . 3 1 3 . . . . . . . . 1 1 . . Prioritize 6 | . . . . . . . . . . . 1 3 . . . . . . . . 1 1 . . Recompile 3 | . . . . . . . . . . 3 . . . . . . . . . . . . . . Repair Stations . | . . . . . . . . . . . . . . . . . . . . . . . . . Recycling Units . | . . . . . . . . . . . . . . . . . . . . . . . . . Scanalyzers . | . . . . . . . . . . . . . . . . . . . . . . . . . Garrison Access . | . . . . . . . . . . . . . . . . . . . . . . . . . Data Cores Recovered 3 | . . . . . . . . . . 2 . . 1 . . . . . . . . . . . Used . | . . . . . . . . . . . . . . . . . . . . . . . . . Hacking Detections 35 | . 5 . 4 . . . 1 1 . 3 2 5 3 . . 1 . . . . 2 2 3 3 Full Trace Events 10 | . 1 . 1 . . . . 1 . . 1 3 . . . . . . . . 1 1 . 1 Feedback Events . | . . . . . . . . . . . . . . . . . . . . . . . . . Feedback Blocked 1 | . . . . . . . . . . . . . . . . . . . . . . . . 1 Robot Schematics Acquired . | . . . . . . . . . . . . . . . . . . . . . . . . . Robots Built . | . . . . . . . . . . . . . . . . . . . . . . . . . Authchips . | . . . . . . . . . . . . . . . . . . . . . . . . . Time . | . . . . . . . . . . . . . . . . . . . . . . . . . Total Robot Build Rating . | . . . . . . . . . . . . . . . . . . . . . . . . . Part Schematics Acquired 7 | . . . . . . . 1 . . . 2 3 . . . . . . . . 1 . . . Parts Built 13 | . . . . . . . . 1 . 3 1 5 . . . . . . . . 2 1 . . Authchips 3 | . . . . . . . . . . 3 . . . . . . . . . . . . . . Time 288 | . . . . . . . . 73 . 72 26 79 . . . . . . . . 12 26 . . Total Part Build Rating 50 | . . . . . . . . 3 . 9 6 24 . . . . . . . . 2 6 . . Parts Repaired 2 | . . . . . . . . . . . 1 . . . . . . . . . . . 1 . Time 36 | . . . . . . . . . . . 22 . . . . . . . . . . . 14 . Parts Recycled . | . . . . . . . . . . . . . . . . . . . . . . . . . Recycled Matter . | . . . . . . . . . . . . . . . . . . . . . . . . . Retrieved Matter . | . . . . . . . . . . . . . . . . . . . . . . . . . Retrieved Components . | . . . . . . . . . . . . . . . . . . . . . . . . . Parts Scanalyzed . | . . . . . . . . . . . . . . . . . . . . . . . . . Part Schematics Acquired . | . . . . . . . . . . . . . . . . . . . . . . . . . Parts Damaged . | . . . . . . . . . . . . . . . . . . . . . . . . . Bothacking | -11 -10 -10 -9 -9 -9 -8 -8 -7 -7 -7 -6 -5 -5 -5 -5 -4 -4 -4 -4 -3 -3 -2 -1 -1 ------------ Run | Yrd Mat Min Mat Min Exi Min Mat Fac Was Fac Fac Fac Ext Cet Arc Fac Upp Upp War Pro Res Res Acc Com Used RIF Installer . | . . . . . . . . . . . . . . . . . . . . . . . . . Robots Hacked . | . . . . . . . . . . . . . . . . . . . . . . . . . Non-combat . | . . . . . . . . . . . . . . . . . . . . . . . . . Combat . | . . . . . . . . . . . . . . . . . . . . . . . . . Robot Hacks Applied . | . . . . . . . . . . . . . . . . . . . . . . . . . Relay Couplers Released . | . . . . . . . . . . . . . . . . . . . . . . . . . Fabnet Peak Effective % . | . . . . . . . . . . . . . . . . . . . . . . . . . Robots Rewired 7 | . . . . . . . . . . . . . 7 . . . . . . . . . . . Allies Hacked . | . . . . . . . . . . . . . . . . . . . . . . . . . Hacks Repelled . | . . . . . . . . . . . . . . . . . . . . . . . . . Allies | -11 -10 -10 -9 -9 -9 -8 -8 -7 -7 -7 -6 -5 -5 -5 -5 -4 -4 -4 -4 -3 -3 -2 -1 -1 -------- Run | Yrd Mat Min Mat Min Exi Min Mat Fac Was Fac Fac Fac Ext Cet Arc Fac Upp Upp War Pro Res Res Acc Com Total Allies 33 | . . . . 1 . . . . . . . . 26 5 . . . . . . . . . 1 Largest Group 14 | . . . . 1 1 . . . . . . . 14 14 12 9 8 3 1 . . . . 1 Highest-Rated Group 782 | . . . . 31 31 . . . . . . . 516 782 782 580 484 226 92 . . . . 26 Highest-Rated Ally 159 | . . . . 31 31 . . . . . . . 159 159 143 96 96 96 92 . . . . 26 Total Orders 2 | . . . . . . . . . . . . . . 1 . . 1 . . . . . . . AID 2 | . . . . . . . . . . . . . . 1 . . 1 . . . . . . . Ally Attacks 270 | . . . . . . . . . . . . . 110 35 32 16 61 6 10 . . . . . Total Damage 5798 | . . . . . . . . . . . . . 1861 993 997 455 1045 117 330 . . . . . Kills 39 | . . . . . . . . . . . . . 13 6 4 6 8 1 1 . . . . . Allies Corrupted . | . . . . . . . . . . . . . . . . . . . . . . . . . Allies Melted 1 | . . . . . . . . . . . . . 1 . . . . . . . . . . . Intel | -11 -10 -10 -9 -9 -9 -8 -8 -7 -7 -7 -6 -5 -5 -5 -5 -4 -4 -4 -4 -3 -3 -2 -1 -1 ------- Run | Yrd Mat Min Mat Min Exi Min Mat Fac Was Fac Fac Fac Ext Cet Arc Fac Upp Upp War Pro Res Res Acc Com Active Infowar (turns) 5193 | . . . . . 1 . . 11 37 980 572 640 733 393 143 306 245 144 170 61 262 134 251 110 Sensors 635 | . . . . . . . . . . . . . . . . 3 245 144 170 61 12 . . . Terrain 300 | . . . . . . . . 11 37 252 . . . . . . . . . . . . . . Structural 5015 | . . . . . . . . . . 851 572 640 733 393 143 306 245 144 170 61 262 134 251 110 Cloaking 1 | . . . . . 1 . . . . . . . . . . . . . . . . . . . Robot Analysis Total 1 | . 1 . . . . . . . . . . . . . . . . . . . . . . . Derelict Logs Recovered 4 | . . . . 1 . . . . . . . . . . . . 2 1 . . . . . . Drone Launches . | . . . . . . . . . . . . . . . . . . . . . . . . . Drone Recoveries . | . . . . . . . . . . . . . . . . . . . . . . . . . Exploration | -11 -10 -10 -9 -9 -9 -8 -8 -7 -7 -7 -6 -5 -5 -5 -5 -4 -4 -4 -4 -3 -3 -2 -1 -1 ------------- Run | Yrd Mat Min Mat Min Exi Min Mat Fac Was Fac Fac Fac Ext Cet Arc Fac Upp Upp War Pro Res Res Acc Com Turns Passed 7505 | 17 496 19 547 183 86 124 53 451 37 980 572 640 733 393 143 306 245 144 170 61 262 134 251 458 Spaces Moved 10922 | 28 504 51 465 391 219 243 138 501 93 1948 1043 800 1039 122 43 227 262 185 383 179 641 296 505 616 Core 233 | 28 79 . 2 . . . . 42 . . . . . . . . . . . . . . . 82 Treads . | . . . . . . . . . . . . . . . . . . . . . . . . . Legs 63 | . . . 63 . . . . . . . . . . . . . . . . . . . . . Wheels . | . . . . . . . . . . . . . . . . . . . . . . . . . Hover . | . . . . . . . . . . . . . . . . . . . . . . . . . Flight 10626 | . 425 51 400 391 219 243 138 459 93 1948 1043 800 1039 122 43 227 262 185 383 179 641 296 505 534 Fastest Speed 16 | 50 37 37 37 37 37 37 37 35 35 32 30 26 28 28 28 25 28 33 33 33 26 26 25 16 Average Speed 32 | 50 39 37 49 37 37 37 37 37 35 32 31 28 29 28 28 27 32 33 33 33 27 26 26 30 Slowest Speed 120 | 50 50 37 120 37 37 37 40 100 35 35 34 32 104 28 28 28 33 33 33 33 33 27 28 105 Overloaded Moves . | . . . . . . . . . . . . . . . . . . . . . . . . . Propulsion Burnouts . | . . . . . . . . . . . . . . . . . . . . . . . . . Robots Hopped 31 | . 8 . 3 . . . 1 . . 5 1 . 5 . 1 2 . . . . . 2 . 3 Potential Cave-ins 10 | . 1 . . . . . . . . . . 1 8 . . . . . . . . . . . Cave-ins Triggered 2 | . 1 . . . . . . . . . . 1 . . . . . . . . . . . . Exploration Rate (%) 39 | 3 70 17 48 92 60 50 26 9 81 51 28 22 74 59 66 7 42 34 48 34 19 9 17 27 Regions Visited 24 Branch Regions 12 Pre-discovered Areas 2 | . . . . . . . . . . . . . . . . . 1 1 . . . . . . Known Exits Taken 16 | . . 1 1 . 1 1 1 . . 1 1 1 . . . 1 1 1 1 1 1 1 1 . Unknown Exits Taken 6 | 1 1 . . 1 . . . . . . . . 1 1 1 . . . . . . . . . Scrap Searched 4 | . . . . 1 . 1 . . . . . . . . . . 1 . . 1 . . . . Spaces Dug 220 | . 14 . 6 2 . 5 . 19 . 55 25 23 21 . . 6 2 1 . 1 17 7 6 10 Terrain Destroyed 479 | . 14 . 6 22 . 5 . 38 . 69 36 23 160 . . 6 2 1 . 1 17 7 38 34 Melee 201 | . 14 . 6 2 . 5 . 19 . 55 25 23 2 . . 6 2 1 . 1 17 7 6 10 Projectile . | . . . . . . . . . . . . . . . . . . . . . . . . . AOE 278 | . . . . 20 . . . 19 . 14 11 . 158 . . . . . . . . . 32 24 Terrain Rammed . | . . . . . . . . . . . . . . . . . . . . . . . . . Walls Destroyed . | . . . . . . . . . . . . . . . . . . . . . . . . . Machines Disabled . | . . . . . . . . . . . . . . . . . . . . . . . . . Actions | -11 -10 -10 -9 -9 -9 -8 -8 -7 -7 -7 -6 -5 -5 -5 -5 -4 -4 -4 -4 -3 -3 -2 -1 -1 --------- Run | Yrd Mat Min Mat Min Exi Min Mat Fac Was Fac Fac Fac Ext Cet Arc Fac Upp Upp War Pro Res Res Acc Com Total 14311 | 30 732 50 734 417 221 257 137 698 96 2210 1236 1181 1445 480 171 456 418 266 425 179 698 338 589 847 Wait 2809 | . 192 . 226 12 . 2 . 149 4 112 130 346 357 359 129 220 151 81 43 . 18 33 57 188 Move 10838 | 27 487 50 458 390 218 242 135 501 92 1938 1040 798 1028 121 40 222 261 184 382 178 640 292 504 610 Hop 29 | . 8 . 3 . . . 1 . . 4 1 . 5 . 1 2 . . . . . 1 . 3 Pick Up 33 | 3 3 . 5 3 . 1 . . . 6 4 4 . . . . . . . . 3 . . 1 Fast Attach 54 | . 4 . 3 . 1 . . 6 . 13 5 1 3 . 1 4 1 . . . 1 2 2 7 Attach 28 | . 3 . 6 1 . . 1 1 . 2 4 2 3 . . . 1 . . . 1 . . 3 Detach 7 | . . . 1 . . . . 2 . . 1 . 3 . . . . . . . . . . . Swap 27 | . 2 . 1 1 . . . 2 . 3 2 1 2 . . . 1 . . . . 1 5 6 Drop 32 | . . . 3 2 1 1 . . . 8 4 1 . . . 2 1 . . . 2 1 1 5 Fire 51 | . 14 . 9 3 . . . . . 3 3 . 8 . . . . . . . . . 5 6 Melee 310 | . 19 . 19 5 1 11 . 37 . 67 41 27 7 . . 6 2 1 . 1 25 8 15 18 Ram 1 | . . . . . . . . . . . 1 . . . . . . . . . . . . . Kick . | . . . . . . . . . . . . . . . . . . . . . . . . . Crush . | . . . . . . . . . . . . . . . . . . . . . . . . . Escape Stasis 78 | . . . . . . . . . . 54 . 1 15 . . . . . . . 8 . . . Rewire 14 | . . . . . . . . . . . . . 14 . . . . . . . . . . . Trap . | . . . . . . . . . . . . . . . . . . . . . . . . . Miscellaneous . | . . . . . . . . . . . . . . . . . . . . . . . . . Route ------- -11/Scrapyard -10/Materials (discovered 5 exits: *Mat x3 / [*Min] / Sub) -10/Mines (discovered 2 exits: *Mat x2) -9/Materials (discovered 4 exits: Mat x3 / *Min) -9/Mines (discovered 2 exits: *Mat / *Exi) -9/Exiles (discovered 2 exits: *Min x2) -8/Mines -8/Materials (discovered 4 exits: *Fac x2 / *Sto x2) -7/Factory -7/Waste -7/Factory (discovered 6 exits: *Fac x4 / *Low x2) -6/Factory (discovered 6 exits: *Fac x4 / *Low x2) -5/Factory (discovered 4 exits: Upp x2 / *Ext x2) -5/Extension (discovered 2 exits: *Fac / *Cet) -5/Cetus -5/Archives -4/Factory (discovered 3 exits: *Upp x2 / Arm) -4/Upper Caves -4/Upper Caves -4/Warlord -3/Proximity Caves -3/Research (discovered 2 exits: *Res / *Tes) -2/Research (discovered 3 exits: *Acc x3) -1/Access -1/Command History --------- Turn | Location | Event 11 | -11/Scrapyard | Discovered new exit (range 15) 18 | -11/Scrapyard | Entered Materials 85 | -10/Materials | Discovered new exit (range 16) 121 | -10/Materials | Discovered new exit (range 15) 250 | -10/Materials | Learned 2 Mines zone layouts 282 | -10/Materials | Learned location of 2 exits from Subcaves 304 | -10/Materials | Build established: Mutant 305 | -10/Materials | Learned Storage emergency access door positions 319 | -10/Materials | Identified exit to Materials 319 | -10/Materials | Identified exit to Subcaves 323 | -10/Materials | Loaded intel: 1 repair station location 325 | -10/Materials | Learned 4 Recycling zone layouts 467 | -10/Materials | Crushed by falling debris 514 | -10/Materials | Entered Mines 531 | -10/Mines | Discovered exit to Materials (range 5) 533 | -10/Mines | Entered Materials 533 | -9/Materials | Evolved 2 slots: Utility x2 534 | -9/Materials | Identified exit to Mines 706 | -9/Materials | Learned 8 Materials zone layouts 754 | -9/Materials | Identified exit to Materials 850 | -9/Materials | Learned location of 1 exit from Recycling 932 | -9/Materials | Learned Storage trap positions 1080 | -9/Materials | Entered Mines 1090 | -9/Mines | Learned location of 1 exit from Lower Caves 1163 | -9/Mines | Received a Rocket Launcher from a helpful Derelict 1186 | -9/Mines | A weapon hastily lodged in a ceiling crevice suddenly fell to the ground 1214 | -9/Mines | Discovered exit to Materials (range 10) 1241 | -9/Mines | Received a Mining Laser from a helpful Derelict 1251 | -9/Mines | Deemed a non-threat by the Exiles lab entrance 1251 | -9/Mines | Discovered new exit (range 5) 1263 | -9/Mines | Entered Exiles 1263 | -9/Exiles | Accompanied by 1 ally 1264 | -9/Exiles | Identified exit to Mines 1273 | -9/Exiles | Met 8R-AWN 1279 | -9/Exiles | Met EX-HEX 1290 | -9/Exiles | Met EX-BIN 1296 | -9/Exiles | Aligned with FarCom system 1296 | -9/Exiles | Given EX-Vault access code 1310 | -9/Exiles | Opened EX-Vault 1312 | -9/Exiles | Found Cloak of Protection 1322 | -9/Exiles | Warned to stay clear of 0b10 Research branches 1332 | -9/Exiles | Met EX-DEC 1349 | -9/Exiles | Entered Mines 1471 | -8/Mines | Discovered exit to Materials (range 5) 1473 | -8/Mines | Entered Materials 1473 | -8/Materials | Evolved 2 slots: Utility x2 1474 | -8/Materials | Identified exit to Storage 1475 | -8/Materials | Identified exit to Factory 1526 | -8/Materials | Entered Factory 1526 | -7/Factory | Evolved 2 slots: Utility x2 1664 | -7/Factory | Destroyed 8 combat bots 1738 | -7/Factory | Fabricated Hacking Suite? 1917 | -7/Factory | Build established: Hacker-Mutant 1977 | -7/Factory | Manually triggered Chute Trap 1977 | -7/Factory | Sucked down chute 1977 | -7/Factory | Entered Waste 1980 | -7/Waste | Spotted C-40 Crusher 1981 | -7/Waste | Spotted C-40 Crusher 1987 | -7/Waste | Spotted C-40 Crusher 1995 | -7/Waste | Spotted C-40 Crusher 2000 | -7/Waste | Spotted C-40 Crusher 2001 | -7/Waste | Spotted C-40 Crusher 2003 | -7/Waste | Discovered new exit (range 16) 2014 | -7/Waste | Entered Factory 2059 | -7/Factory | Discovered new exit (range 11) 2154 | -7/Factory | Identified exit to Factory 2236 | -7/Factory | Build established: Hacker-Scout 2436 | -7/Factory | Lost 3 parts (1p2n) 2571 | -7/Factory | Build established: Hacker-Sprinter 2634 | -7/Factory | Fabricated Hacking Suite? 2664 | -7/Factory | Fabricated Hacking Suite (x1) 2690 | -7/Factory | Fabricated Hacking Suite (x1) 2721 | -7/Factory | Identified exit to Lower Caves 2994 | -7/Factory | Entered another Factory area 2994 | -6/Factory | Evolved 2 slots: Propulsion x2 3059 | -6/Factory | Build established: Wizard-Mutant 3256 | -6/Factory | Discovered new exit (range 14) 3304 | -6/Factory | Fabricated Nuclear Pulse Array (x1) 3439 | -6/Factory | Build established: Wizard-Sprinter 3482 | -6/Factory | Repaired Mak. Sword 3554 | -6/Factory | Identified exit to Lower Caves 3554 | -6/Factory | Identified exit to Factory 3566 | -6/Factory | Entered another Factory area 3566 | -5/Factory | Evolved 2 slots: Propulsion x2 3576 | -5/Factory | Identified exit to Upper Caves 3576 | -5/Factory | Identified exit to Extension 3705 | -5/Factory | Fabricated Adv. Sensor Array (x2) 3840 | -5/Factory | Crushed by falling debris 3865 | -5/Factory | Fabricated Adv. Signal Interpreter (x2) 3909 | -5/Factory | Fabricated Rocket Array? 4206 | -5/Factory | Entered Extension 4233 | -5/Extension | Rescued a captive Derelict 4234 | -5/Extension | Rescued a captive Derelict 4242 | -5/Extension | Rescued a captive Derelict 4244 | -5/Extension | Rescued a captive Derelict 4327 | -5/Extension | Lost 3 allies 4506 | -5/Extension | Rescued a captive Derelict 4521 | -5/Extension | Rescued a captive Derelict 4535 | -5/Extension | Rescued a captive Derelict 4535 | -5/Extension | Rescued a captive Derelict 4536 | -5/Extension | Rescued a captive Derelict 4550 | -5/Extension | Rescued a captive Derelict 4562 | -5/Extension | Rescued a captive Derelict 4566 | -5/Extension | Rescued a captive Derelict 4568 | -5/Extension | Lost 3 allies 4595 | -5/Extension | Rescued a captive Derelict 4598 | -5/Extension | Rescued a captive Derelict 4620 | -5/Extension | Rescued a captive Derelict 4721 | -5/Extension | Rescued A7 4730 | -5/Extension | Rescued a captive Derelict 4731 | -5/Extension | Rescued a captive Derelict 4752 | -5/Extension | Rescued a captive Derelict 4853 | -5/Extension | Discovered new exit (range 10) 4853 | -5/Extension | Discovered new exit (range 6) 4939 | -5/Extension | Entered Cetus 4939 | -5/Cetus | Accompanied by 14 allies (A7) 4944 | -5/Cetus | Acquired a Cetus Manufacturing Module code from A7 4983 | -5/Cetus | Spotted Cetus Guard 4983 | -5/Cetus | Spotted Cetus Guard 5014 | -5/Cetus | Allies destroyed Cetus Guard 5014 | -5/Cetus | Spotted Cetus Guard 5019 | -5/Cetus | Allies destroyed Cetus Guard 5053 | -5/Cetus | Lost 7 allies 5093 | -5/Cetus | Escorted A7 to Cetus Mainframe 5096 | -5/Cetus | Started Cetus Manufacturing Module 5121 | -5/Cetus | Manufactured an Enhanced Grunt 5146 | -5/Cetus | Manufactured an Enhanced Grunt 5171 | -5/Cetus | Manufactured an Enhanced Grunt 5196 | -5/Cetus | Manufactured an Enhanced Grunt 5221 | -5/Cetus | Manufactured an Enhanced Grunt 5262 | -5/Cetus | Discovered new exit (range 16) 5332 | -5/Cetus | Entered Archives 5332 | -5/Archives | Accompanied by 12 allies (A7) 5337 | -5/Archives | Received a hacking code to weaken MAIN.C 5407 | -5/Archives | Discovered new exit (range 16) 5475 | -5/Archives | Entered Factory 5475 | -4/Factory | Accompanied by 9 allies 5475 | -4/Factory | Evolved 2 slots: Utility x2 5477 | -4/Factory | Identified exit to Upper Caves 5477 | -4/Factory | Identified exit to Armory 5781 | -4/Factory | Entered Upper Caves 5781 | -4/Upper Caves | Accompanied by 8 allies 5786 | -4/Upper Caves | Found DCF Scrap (12 items) 5805 | -4/Upper Caves | Attracted the attention of an 0b10 checkpoint 5883 | -4/Upper Caves | Lost 4 allies 5906 | -4/Upper Caves | Learned location of Quarantine (-2) 5941 | -4/Upper Caves | Learned 4 Research zone layouts 5957 | -4/Upper Caves | Discovered new exit (range 4) 5963 | -4/Upper Caves | Build established: Wizard-Scout 6026 | -4/Upper Caves | Identified exit to Upper Caves 6026 | -4/Upper Caves | Entered another Upper Caves area 6026 | -4/Upper Caves | Accompanied by 4 allies 6098 | -4/Upper Caves | Discovered new exit (range 4) 6099 | -4/Upper Caves | Identified exit to Warlord 6170 | -4/Upper Caves | Entered Warlord 6170 | -4/Warlord | Accompanied by 1 ally 6208 | -4/Warlord | Met Warlord 6233 | -4/Warlord | Warlord's base attacked by MAIN.C 6266 | -4/Warlord | Opened side exit 6336 | -4/Warlord | Discovered new exit (range 12) 6339 | -4/Warlord | Identified exit to Proximity Caves 6340 | -4/Warlord | Entered Proximity Caves 6387 | -3/Proximity Caves | Spotter reported a threat 6387 | -3/Proximity Caves | Spotter reported a threat 6398 | -3/Proximity Caves | Discovered new exit (range 11) 6401 | -3/Proximity Caves | Identified exit to Research 6401 | -3/Proximity Caves | Entered Research 6401 | -3/Research | Evolved 2 slots: Propulsion x2 6469 | -3/Research | Discovered new exit (range 15) 6476 | -3/Research | Identified exit to Research 6559 | -3/Research | Discovered new exit (range 13) 6567 | -3/Research | Identified exit to Testing 6607 | -3/Research | Fabricated Datajack (x2) 6663 | -3/Research | Entered another Research area 6663 | -2/Research | Warlord forces began assault on 0b10 6663 | -2/Research | Evolved 2 slots: Power x1, Utility x1 6693 | -2/Research | Fabricated Nuclear Pulse Array? 6712 | -2/Research | Met up with Warlord 6738 | -2/Research | Identified exit to Access 6773 | -2/Research | Research machine network offline 6797 | -2/Research | Entered Access 6797 | -1/Access | Evolved 2 slots: Utility x2 6804 | -1/Access | Identified exit to Command 6893 | -1/Access | Lost 5 allies 6956 | -1/Access | Repaired Ripper 7048 | -1/Access | Entered Command 7051 | -1/Command | Phase Generator disabled 7182 | -1/Command | Disengaged cave seal 7182 | -1/Command | Derelicts emerged from the dark tunnel 7182 | -1/Command | Welcomed Warlord to Command 7194 | -1/Command | Lost 5 parts (1p2n2u) 7305 | -1/Command | Lost 9 allies 7330 | -1/Command | Lost 6 parts (5n1u) 7414 | -1/Command | Warlord commented on Warlord statues 7418 | -1/Command | Spotted M Guard 7418 | -1/Command | Spotted M Guard 7419 | -1/Command | Spotted Combat Programmer 7419 | -1/Command | Spotted Combat Programmer 7451 | -1/Command | Core integrity fell below 50% 7452 | -1/Command | Warlord destroyed during the assault 7467 | -1/Command | Core integrity fell below 20% 7491 | -1/Command | Lost 9 parts (2n5u2w) 7504 | -1/Command | Spotted Executioner 7504 | -1/Command | Spotted Executioner 7504 | -1/Command | Spotted Executioner 7504 | -1/Command | Spotted Executioner 7504 | -1/Command | Spotted Striker 7504 | -1/Command | Spotted Striker 7504 | -1/Command | Spotted Alpha 7 7504 | -1/Command | Spotted Alpha 7 7505 | -1/Command | Spotted B-99 Colossus 7506 | -1/Command | Destroyed by Executioner with Helical Railgun Last Messages --------------- Spear destroyed. Knocked back. The unstable cave ceiling collapses. Knocked back. The unstable cave ceiling collapses. Hacking Suite destroyed. The unstable cave ceiling collapses. System corrupted: Heat flow error (+198). R-10 Processor inserts Antigrav System into recycling unit. R-10 Processor inserts Myomer Leg into recycling unit. Acquired Field Propulsion Drive. R-10 Processor inserts Phase Gun into recycling unit. Recycling Unit disabled. System corrupted: Energy discharge (-24). Penetrated by Slug. Slug penetrates Door. Slug penetrates Wall. Penetrated by Slug. Field Propulsion Drive destroyed. Penetrated by Slug. Map ----- +----------------------------------------------------+ | ?????????????????????????????????????????????????? | | ?????????????????????????????????????????????????? | | ?????????????????????????????????????????????????? | | ?????????????????????????????????????????????????? | | ?????????????????????????????????????????????????? | | ?????????????????????????????????????????????????? | | ?????????????????????????????????????????????????? | | ????????????????????????????????????? ???????????? | | ?????????????????????????????????## ??????????? | | ????????????????????????????????? + ??????????? | | ????????????????????????????????? # ?????????? | | ????????????????????????????????? # ?????????? | | ????????????????????????????????? # ????????? | | ????????????????????????????????? # ????????? | | ?????????????????????????????????## ???????? | | ?????????????????????????????????## ???????? | | ?????????????????????????????????## ?""###? | | ?????????????????????????????????## ###### | | ???????????? ????????????????????## ##"### | | ???????????? ?#?######????????## # # | | ???????????? BB# # #K; ###???#### + # | | ?????????????" E E 7 ######## # # | | ?????????????" + # # | | ?????????????" + #! # | | ?????????????"^ + # # | | ?????????????" @ + # # | | ?????????????" E^ K7 ### # # | | ?????????? #E# # # ###?# + # | | ???????????????BB????#?##????# #+###" | | ???????????????BB????????????# h ## # | | ?????????????????????????????# h #### | | ?????????????????????????????# #### | | ?????######################### # | | ?????#! | # # p # | | ?????# # # + | | ?????# """Y""" # """" #p # | | ?????# """""" # """" # ############## # | | ?????# # """" # ############## " | | ?????# # """" " #??????????? # # | | ?????######+#/####### # # # # | | ??????????# + # # # # | | ??????????# ##### # # """" # # | | ??????????# #???########## # """" # # | | ??????????# #??????? + # """" #+# | | ########### #??????? # + """" # | | #??????? # # # | | #???????"" # % # [ + | | #???????""" # %# # | | #??????? R" # %[!# # | | #???????""" #!%!%# # | +----------------------------------------------------+ Best States ------------- Heat Dissipation 52 Energy Generation 25 Energy Capacity 405 Matter Stores 300 Matter Capacity 300 Sight Range 16 Robot Scan Range 16 Terrain Scan Range 14 Terrain Scan Density 85 Resistance: KI 20 Resistance: TH 20 Resistance: EX 20 Resistance: EM 20 Resistance: I 20 Resistance: S 20 Resistance: P 20 Evasion (%) 66 Offensive Hacking 60 Defensive Hacking 36 Authchip Count 3 Item Schematics ----------------- Hacking Suite | -8/Materials | Hacked Gravmag Array | -6/Factory | Hacked Nuclear Pulse Array | -6/Factory | Hacked Adv. Sensor Array | -5/Factory | Hacked Adv. Signal Interpreter | -5/Factory | Hacked Rocket Array | -5/Factory | Hacked Datajack | -3/Research | Hacked Robot Schematics ------------------ None Fabricated ------------ Hacking Suite | x1 | -7/Factory Hacking Suite | x1 | -7/Factory | Authchip Hacking Suite | x1 | -7/Factory | Authchip Hacking Suite | x1 | -7/Factory | Authchip Nuclear Pulse Array | x1 | -6/Factory Adv. Sensor Array | x2 | -5/Factory Adv. Signal Interpreter | x2 | -5/Factory Rocket Array | x1 | -5/Factory Datajack | x2 | -3/Research Nuclear Pulse Array | x1 | -2/Research Repaired ---------- Mak. Sword | 37% | -6/Factory Ripper | 18% | -1/Access Alien Tech Used ----------------- None Achievements -------------- None Challenges ------------ None Game ------ Seed RapidHardenedTerrabomb Manual? 0 Play Time 01:51:51 Cumulative 217.1 hours Start 2025.05.28 @ 23:15:53 End 2025.05.29 @ 19:47:12 Sessions 3 Manual Loads 0 Difficulty Adventurer Special Mode None Game No. 220 Rogue 33 Adventurer 175 Explorer 12 Win Type - Total 59 Types 17/1/16/2/12/0/4/2/0/5 Lore% 48 Gallery% 50 Achievement% 68 Wizard Run 0 Options --------- Layout 0 ASCII 0 Keyboard 0 Movement Numpad Keybinds 0 Fullscreen 2 Font 12/Smallcaps Map View 83x54 Zoom Use 0% Tactical HUD 0 Map Filters NONE Filters NONE Steam X RUN: 0c659d03-8141-49e5-af47-61339c9d8c31